[Event "Late-Titled-Tuesday-Blitz-March-26-2024"]
[Site "Chess.com"]
[Date "2024.03.26"]
[Round "2"]
[White "slorovel"]
[Black "GMBenjaminBok"]
[Result "1/2-1/2"]
[WhiteElo "2638"]
[BlackElo "2986"]
[TimeControl "180+1"]
[EndTime "14:19:51 PDT"]
[Termination "Game drawn by repetition"]

1. e4 {[%clk 0:03:00.9]} 1... c5 {[%clk 0:02:59.8]} 2. Nf3 {[%clk 0:03:00.6]}
2... d6 {[%clk 0:03:00.5]} 3. Bb5+ {[%clk 0:02:59]} 3... Nd7 {[%clk 0:03:00.1]}
4. a4 {[%clk 0:02:58.5]} 4... Nf6 {[%clk 0:03:00]} 5. Nc3 {[%clk 0:02:58.4]}
5... a6 {[%clk 0:03:00.4]} 6. Be2 {[%clk 0:02:57.9]} 6... g6 {[%clk 0:03:00.8]}
7. O-O {[%clk 0:02:52.6]} 7... Bg7 {[%clk 0:03:00.9]} 8. a5 {[%clk 0:02:52]}
8... O-O {[%clk 0:03:00.7]} 9. d3 {[%clk 0:02:52.1]} 9... b5 {[%clk 0:03:01.1]}
10. axb6 {[%clk 0:02:52.1]} 10... Bb7 {[%clk 0:03:01.4]} 11. Qd2 {[%clk
0:02:50.6]} 11... a5 {[%clk 0:03:01.4]} 12. Qg5 {[%clk 0:02:49.1]} 12... Qxb6
{[%clk 0:03:01.4]} 13. Qh4 {[%clk 0:02:46.9]} 13... Bc6 {[%clk 0:03:01.4]} 14.
Nd2 {[%clk 0:02:35.5]} 14... Rfb8 {[%clk 0:02:51.4]} 15. Nc4 {[%clk 0:02:33.5]}
15... Qc7 {[%clk 0:02:51.9]} 16. Bh6 {[%clk 0:02:30]} 16... Bxh6 {[%clk
0:02:26.2]} 17. Qxh6 {[%clk 0:02:30.9]} 17... e6 {[%clk 0:02:26.8]} 18. Qf4
{[%clk 0:02:22.2]} 18... Ne8 {[%clk 0:02:23.8]} 19. Qg3 {[%clk 0:02:02.4]} 19...
a4 {[%clk 0:02:14.5]} 20. Qg5 {[%clk 0:01:28.3]} 20... Rb4 {[%clk 0:01:36.9]}
21. f4 {[%clk 0:01:18.7]} 21... Qd8 {[%clk 0:01:23.7]} 22. Qxd8 {[%clk 0:01:07]}
22... Rxd8 {[%clk 0:01:24.6]} 23. Bf3 {[%clk 0:01:07.3]} 23... Rdb8 {[%clk
0:01:23.9]} 24. Ra2 {[%clk 0:01:03.5]} 24... Nb6 {[%clk 0:00:38.8]} 25. Nxb6
{[%clk 0:00:40]} 25... R8xb6 {[%clk 0:00:39.7]} 26. Nd1 {[%clk 0:00:40.1]} 26...
Kf8 {[%clk 0:00:36.6]} 27. h4 {[%clk 0:00:38.2]} 27... d5 {[%clk 0:00:33.2]} 28.
exd5 {[%clk 0:00:34.3]} 28... Bxd5 {[%clk 0:00:34.1]} 29. Bxd5 {[%clk
0:00:27.1]} 29... exd5 {[%clk 0:00:35]} 30. Rf2 {[%clk 0:00:23.4]} 30... Nd6
{[%clk 0:00:24]} 31. Nc3 {[%clk 0:00:23.1]} 31... Rxb2 {[%clk 0:00:20.8]} 32.
Rxb2 {[%clk 0:00:22.3]} 32... Rxb2 {[%clk 0:00:21.7]} 33. Nxa4 {[%clk
0:00:22.6]} 33... Rb1+ {[%clk 0:00:17.6]} 34. Kh2 {[%clk 0:00:22.3]} 34... Nf5
{[%clk 0:00:06.7]} 35. g3 {[%clk 0:00:21.4]} 35... Ne3 {[%clk 0:00:05.9]} 36.
Re2 {[%clk 0:00:16.8]} 36... Ng4+ {[%clk 0:00:03]} 37. Kg2 {[%clk 0:00:16.7]}
37... c4 {[%clk 0:00:03.9]} 38. dxc4 {[%clk 0:00:12]} 38... dxc4 {[%clk
0:00:04.8]} 39. Nc3 {[%clk 0:00:11.2]} 39... Rc1 {[%clk 0:00:04.9]} 40. Nd5
{[%clk 0:00:08.4]} 40... h5 {[%clk 0:00:04]} 41. Nb6 {[%clk 0:00:06]} 41... c3
{[%clk 0:00:03.1]} 42. Nd5 {[%clk 0:00:05.3]} 42... Kg7 {[%clk 0:00:02.9]} 43.
Nxc3 {[%clk 0:00:05.2]} 43... Nh6 {[%clk 0:00:02.3]} 44. Nd5 {[%clk 0:00:03.6]}
44... Nf5 {[%clk 0:00:02.7]} 45. Ne3 {[%clk 0:00:01.8]} 45... Nxe3+ {[%clk
0:00:02.3]} 46. Rxe3 {[%clk 0:00:02]} 46... Rxc2+ {[%clk 0:00:03]} 47. Kf3
{[%clk 0:00:02.8]} 47... Kf6 {[%clk 0:00:03.5]} 48. Re2 {[%clk 0:00:03.3]} 48...
Rc3+ {[%clk 0:00:03.8]} 49. Re3 {[%clk 0:00:04.2]} 49... Rxe3+ {[%clk
0:00:03.5]} 50. Kxe3 {[%clk 0:00:04.5]} 50... Kf5 {[%clk 0:00:04.4]} 51. Kf3
{[%clk 0:00:05.4]} 51... f6 {[%clk 0:00:04.7]} 52. Kf2 {[%clk 0:00:05.6]} 52...
Kg4 {[%clk 0:00:02.5]} 53. Kg2 {[%clk 0:00:05.8]} 53... f5 {[%clk 0:00:02.6]}
54. Kf2 {[%clk 0:00:04.1]} 54... Kh3 {[%clk 0:00:03.4]} 55. Kf3 {[%clk
0:00:04.5]} 55... Kh2 {[%clk 0:00:04]} 56. Kf2 {[%clk 0:00:04.8]} 56... Kh3
{[%clk 0:00:04.5]} 57. Kf3 {[%clk 0:00:05.1]} 57... Kh2 {[%clk 0:00:05.1]} 58.
Kf2 {[%clk 0:00:05.4]} 58... Kh1 {[%clk 0:00:04.8]} 59. Kf1 {[%clk 0:00:05.5]}
59... Kh2 {[%clk 0:00:05.5]} 60. Kf2 {[%clk 0:00:05.9]} 1/2-1/2

[Event "Late-Titled-Tuesday-Blitz-March-26-2024"]
[Site "Chess.com"]
[Date "2024.03.26"]
[Round "2"]
[White "Hrant_ChessMood"]
[Black "ValeriyGrinev"]
[Result "1-0"]
[WhiteElo "2944"]
[BlackElo "2616"]
[TimeControl "180+1"]
[EndTime "14:19:59 PDT"]
[Termination "Hrant_ChessMood won by resignation"]

1. c4 {[%clk 0:02:52.4]} 1... c5 {[%clk 0:02:58.8]} 2. Nf3 {[%clk 0:02:50.9]}
2... Nc6 {[%clk 0:02:57.4]} 3. Nc3 {[%clk 0:02:50.8]} 3... e5 {[%clk 0:02:56.6]}
4. e3 {[%clk 0:02:50.7]} 4... Nf6 {[%clk 0:02:56.3]} 5. Be2 {[%clk 0:02:50.6]}
5... d5 {[%clk 0:02:53.8]} 6. d4 {[%clk 0:02:43.6]} 6... cxd4 {[%clk 0:02:43.9]}
7. exd4 {[%clk 0:02:42]} 7... e4 {[%clk 0:02:38]} 8. Ne5 {[%clk 0:02:42.1]} 8...
Bd6 {[%clk 0:02:37.7]} 9. Bf4 {[%clk 0:02:39.8]} 9... Be6 {[%clk 0:02:26.5]} 10.
O-O {[%clk 0:02:13.2]} 10... O-O {[%clk 0:02:25.5]} 11. Nxc6 {[%clk 0:02:05.5]}
11... bxc6 {[%clk 0:02:25.2]} 12. Bxd6 {[%clk 0:02:06.4]} 12... Qxd6 {[%clk
0:02:25.4]} 13. c5 {[%clk 0:02:07.3]} 13... Qf4 {[%clk 0:02:15.6]} 14. Qc1
{[%clk 0:02:07.4]} 14... Qh4 {[%clk 0:02:14.9]} 15. Qe3 {[%clk 0:02:04.6]} 15...
Bg4 {[%clk 0:02:09.4]} 16. h3 {[%clk 0:01:55.6]} 16... Bxe2 {[%clk 0:02:08.4]}
17. Nxe2 {[%clk 0:01:56.5]} 17... a5 {[%clk 0:02:07.2]} 18. Rfb1 {[%clk
0:01:50.8]} 18... Ne8 {[%clk 0:02:01.1]} 19. b3 {[%clk 0:01:41]} 19... Nc7
{[%clk 0:02:00.7]} 20. Qf4 {[%clk 0:01:31.6]} 20... Qxf4 {[%clk 0:01:38.2]} 21.
Nxf4 {[%clk 0:01:32.5]} 21... Nb5 {[%clk 0:01:38.3]} 22. Ne2 {[%clk 0:01:32.8]}
22... Na3 {[%clk 0:01:38.5]} 23. Rb2 {[%clk 0:01:28.7]} 23... Rab8 {[%clk
0:01:36.4]} 24. Rd1 {[%clk 0:01:25]} 24... f5 {[%clk 0:01:29.4]} 25. Nf4 {[%clk
0:01:24]} 25... Kf7 {[%clk 0:01:28.1]} 26. h4 {[%clk 0:01:23.6]} 26... g6 {[%clk
0:01:27.5]} 27. Re2 {[%clk 0:01:13.7]} 27... h6 {[%clk 0:01:19]} 28. h5 {[%clk
0:01:10.3]} 28... g5 {[%clk 0:01:18]} 29. Ng6 {[%clk 0:01:10.6]} 29... Rfc8
{[%clk 0:01:16.1]} 30. f3 {[%clk 0:00:59]} 30... Ke6 {[%clk 0:01:13.2]} 31. fxe4
{[%clk 0:00:57.4]} 31... dxe4 {[%clk 0:01:12.5]} 32. g4 {[%clk 0:00:52]} 32...
Re8 {[%clk 0:00:52.3]} 33. Ne5 {[%clk 0:00:44.1]} 33... f4 {[%clk 0:00:44.7]}
34. Nxc6 {[%clk 0:00:36.5]} 34... Kd5 {[%clk 0:00:44.8]} 35. Nxb8 {[%clk
0:00:23.6]} 35... Rxb8 {[%clk 0:00:45.7]} 36. c6 {[%clk 0:00:24.5]} 36... Nb5
{[%clk 0:00:44.1]} 37. Rc2 {[%clk 0:00:20.8]} 37... Kd6 {[%clk 0:00:25.2]} 38.
d5 {[%clk 0:00:14]} 38... Nc7 {[%clk 0:00:23.5]} 39. Rc4 {[%clk 0:00:10.9]}
39... Re8 {[%clk 0:00:22.8]} 40. Rdd4 {[%clk 0:00:06.9]} 40... Nxd5 {[%clk
0:00:19.1]} 41. c7 {[%clk 0:00:05.2]} 41... Rc8 {[%clk 0:00:15.5]} 42. Rxe4
{[%clk 0:00:05.7]} 42... Rxc7 {[%clk 0:00:16]} 43. Rxc7 {[%clk 0:00:05.5]} 43...
Nxc7 {[%clk 0:00:16.9]} 44. Ra4 {[%clk 0:00:05.4]} 44... Ne8 {[%clk 0:00:13.3]}
45. Rxa5 {[%clk 0:00:06]} 45... Nf6 {[%clk 0:00:11.8]} 46. Ra6+ {[%clk
0:00:06.6]} 46... Ke5 {[%clk 0:00:12.3]} 47. a4 {[%clk 0:00:02.9]} 47... Nxg4
{[%clk 0:00:12.6]} 48. a5 {[%clk 0:00:03.5]} 48... f3 {[%clk 0:00:13.2]} 49. Ra8
{[%clk 0:00:03.8]} 49... Kf4 {[%clk 0:00:13.7]} 50. Rf8+ {[%clk 0:00:02.9]}
50... Kg3 {[%clk 0:00:14.2]} 51. a6 {[%clk 0:00:03.2]} 51... f2+ {[%clk
0:00:14.1]} 52. Rxf2 {[%clk 0:00:02.9]} 52... Nxf2 {[%clk 0:00:14.4]} 53. a7
{[%clk 0:00:03.8]} 53... Nh3+ {[%clk 0:00:13.5]} 54. Kf1 {[%clk 0:00:04.3]}
54... Nf4 {[%clk 0:00:14.4]} 55. a8=Q {[%clk 0:00:04.4]} 55... Nxh5 {[%clk
0:00:15.3]} 56. Qb8+ {[%clk 0:00:04.4]} 56... Kg4 {[%clk 0:00:15.3]} 57. b4
{[%clk 0:00:05.3]} 57... Nf4 {[%clk 0:00:15.4]} 58. Qc8+ {[%clk 0:00:05.7]}
58... Kg3 {[%clk 0:00:15.5]} 59. b5 {[%clk 0:00:06.6]} 59... h5 {[%clk 0:00:16]}
60. b6 {[%clk 0:00:07.2]} 60... h4 {[%clk 0:00:16.9]} 61. Qc3+ {[%clk
0:00:07.3]} 61... Kg4 {[%clk 0:00:16.8]} 62. b7 {[%clk 0:00:07.9]} 62... h3
{[%clk 0:00:17.3]} 63. b8=Q {[%clk 0:00:08.4]} 63... h2 {[%clk 0:00:18.1]} 64.
Qbc8+ {[%clk 0:00:09.3]} 64... Kh4 {[%clk 0:00:17.8]} 65. Q3h8+ {[%clk
0:00:08.8]} 65... Kg3 {[%clk 0:00:17.2]} 66. Qcc3+ {[%clk 0:00:09]} 66... Kg4
{[%clk 0:00:17.1]} 67. Qxh2 {[%clk 0:00:08.9]} 67... Ne2 {[%clk 0:00:17.5]} 68.
Qxe2+ {[%clk 0:00:08.2]} 1-0

[Event "Late-Titled-Tuesday-Blitz-March-26-2024"]
[Site "Chess.com"]
[Date "2024.03.26"]
[Round "2"]
[White "Boundless_Strike"]
[Black "Fandorine"]
[Result "1-0"]
[WhiteElo "2622"]
[BlackElo "2900"]
[TimeControl "180+1"]
[EndTime "14:20:03 PDT"]
[Termination "Boundless_Strike won by resignation"]

1. d4 {[%clk 0:03:00.9]} 1... Nf6 {[%clk 0:02:59.5]} 2. f3 {[%clk 0:03:00]} 2...
d5 {[%clk 0:02:44.8]} 3. e4 {[%clk 0:03:00.1]} 3... c5 {[%clk 0:02:19.1]} 4. e5
{[%clk 0:02:55.4]} 4... Nfd7 {[%clk 0:02:18.7]} 5. c3 {[%clk 0:02:55.4]} 5...
Nc6 {[%clk 0:02:15.6]} 6. e6 {[%clk 0:02:49.4]} 6... fxe6 {[%clk 0:02:14.5]} 7.
f4 {[%clk 0:02:43.6]} 7... g6 {[%clk 0:01:53.3]} 8. Nf3 {[%clk 0:02:38.6]} 8...
Bg7 {[%clk 0:01:52.3]} 9. Be3 {[%clk 0:02:27.6]} 9... Qb6 {[%clk 0:01:50.8]} 10.
Qd2 {[%clk 0:02:26.8]} 10... cxd4 {[%clk 0:01:45.1]} 11. cxd4 {[%clk 0:02:25.7]}
11... Nf6 {[%clk 0:01:41.8]} 12. Nc3 {[%clk 0:02:19.3]} 12... Ng4 {[%clk
0:01:31.6]} 13. Bg1 {[%clk 0:02:17]} 13... O-O {[%clk 0:01:32]} 14. h3 {[%clk
0:01:41.7]} 14... Nf6 {[%clk 0:01:31.1]} 15. g4 {[%clk 0:01:42.2]} 15... Bd7
{[%clk 0:01:20.4]} 16. Bd3 {[%clk 0:01:36]} 16... Rad8 {[%clk 0:01:18.5]} 17.
Be3 {[%clk 0:01:11.4]} 17... Nb4 {[%clk 0:01:11.1]} 18. Bb1 {[%clk 0:00:42.2]}
18... Ne4 {[%clk 0:01:11.4]} 19. Nxe4 {[%clk 0:00:34.1]} 19... dxe4 {[%clk
0:01:11.2]} 20. Ne5 {[%clk 0:00:24.9]} 20... Bc6 {[%clk 0:01:03.3]} 21. O-O
{[%clk 0:00:20.2]} 21... Nd3 {[%clk 0:00:40]} 22. Bxd3 {[%clk 0:00:15.6]} 22...
exd3 {[%clk 0:00:37.7]} 23. d5 {[%clk 0:00:07.6]} 23... Qb5 {[%clk 0:00:20.7]}
24. dxc6 {[%clk 0:00:08.3]} 24... bxc6 {[%clk 0:00:20.2]} 25. Qc3 {[%clk
0:00:07.4]} 25... d2 {[%clk 0:00:09.2]} 26. Rad1 {[%clk 0:00:05.9]} 26... Qe2
{[%clk 0:00:05.8]} 27. Rxd2 {[%clk 0:00:04.9]} 27... Rxd2 {[%clk 0:00:05]} 28.
Qxd2 {[%clk 0:00:05.6]} 28... Qb5 {[%clk 0:00:05.9]} 29. Qc3 {[%clk 0:00:05.5]}
29... Rd8 {[%clk 0:00:04.2]} 30. b3 {[%clk 0:00:05.6]} 30... g5 {[%clk
0:00:03.8]} 31. Qc4 {[%clk 0:00:05.5]} 31... Qxc4 {[%clk 0:00:03.7]} 32. Nxc4
{[%clk 0:00:05.1]} 32... gxf4 {[%clk 0:00:04]} 33. Rxf4 {[%clk 0:00:05.4]} 33...
e5 {[%clk 0:00:03.7]} 34. Rf1 {[%clk 0:00:05]} 34... a6 {[%clk 0:00:03.8]} 35.
Kf2 {[%clk 0:00:04.4]} 35... e4 {[%clk 0:00:03.8]} 36. Ke2 {[%clk 0:00:05]}
36... Rd5 {[%clk 0:00:04]} 37. Rd1 {[%clk 0:00:05.4]} 37... e6 {[%clk
0:00:03.9]} 38. Nd2 {[%clk 0:00:04.9]} 38... Ra5 {[%clk 0:00:03.3]} 39. a4
{[%clk 0:00:04.9]} 39... Re5 {[%clk 0:00:03.3]} 40. Bd4 {[%clk 0:00:04.9]} 40...
Rd5 {[%clk 0:00:03.9]} 41. Bxg7 {[%clk 0:00:05.1]} 41... Kxg7 {[%clk 0:00:04.8]}
42. Nxe4 {[%clk 0:00:05.8]} 42... Re5 {[%clk 0:00:04.5]} 43. Ke3 {[%clk
0:00:06.4]} 43... h5 {[%clk 0:00:05.4]} 44. g5 {[%clk 0:00:05.9]} 44... Kg6
{[%clk 0:00:05.5]} 45. Rf1 {[%clk 0:00:05.6]} 45... Rd5 {[%clk 0:00:04.8]} 46.
Rf6+ {[%clk 0:00:05.7]} 46... Kg7 {[%clk 0:00:05.7]} 47. Rxe6 {[%clk 0:00:06.5]}
47... Rd1 {[%clk 0:00:06.3]} 48. h4 {[%clk 0:00:06.7]} 48... Rb1 {[%clk
0:00:06.8]} 49. Kf4 {[%clk 0:00:06.8]} 49... Rxb3 {[%clk 0:00:07.2]} 50. Ng3
{[%clk 0:00:07.2]} 50... Rb4+ {[%clk 0:00:07.2]} 51. Re4 {[%clk 0:00:07.8]}
51... a5 {[%clk 0:00:07.1]} 52. Nf5+ {[%clk 0:00:07.9]} 52... Kg6 {[%clk
0:00:07.5]} 53. Ng3 {[%clk 0:00:08.3]} 53... c5 {[%clk 0:00:06.7]} 54. Ke5
{[%clk 0:00:08.1]} 54... c4 {[%clk 0:00:05.2]} 55. Kd4 {[%clk 0:00:08.3]} 55...
Rxa4 {[%clk 0:00:04.9]} 56. Ne2 {[%clk 0:00:07.9]} 56... c3+ {[%clk 0:00:04.6]}
57. Kd3 {[%clk 0:00:08.3]} 57... Rxe4 {[%clk 0:00:03.3]} 58. Kxe4 {[%clk
0:00:08.8]} 58... c2 {[%clk 0:00:03.7]} 59. Kd3 {[%clk 0:00:09.1]} 59... Kf5
{[%clk 0:00:04.6]} 60. Kxc2 {[%clk 0:00:09.2]} 60... a4 {[%clk 0:00:05.5]} 61.
Kb2 {[%clk 0:00:09.5]} 1-0

[Event "Late-Titled-Tuesday-Blitz-March-26-2024"]
[Site "Chess.com"]
[Date "2024.03.26"]
[Round "2"]
[White "kai_nov"]
[Black "steepedgames"]
[Result "1/2-1/2"]
[WhiteElo "2349"]
[BlackElo "2523"]
[TimeControl "180+1"]
[EndTime "14:20:06 PDT"]
[Termination "Game drawn by repetition"]

1. d4 {[%clk 0:03:00.9]} 1... f5 {[%clk 0:02:57.1]} 2. g3 {[%clk 0:02:58.9]}
2... Nf6 {[%clk 0:02:57.1]} 3. Bg2 {[%clk 0:02:59.8]} 3... g6 {[%clk 0:02:57.6]}
4. c3 {[%clk 0:02:59.9]} 4... Bg7 {[%clk 0:02:58.3]} 5. Qb3 {[%clk 0:03:00.1]}
5... d5 {[%clk 0:02:53.6]} 6. Nh3 {[%clk 0:02:57.8]} 6... O-O {[%clk 0:02:52.4]}
7. O-O {[%clk 0:02:57.8]} 7... c6 {[%clk 0:02:51.7]} 8. Nd2 {[%clk 0:02:56.7]}
8... Qb6 {[%clk 0:02:45.1]} 9. Qc2 {[%clk 0:02:55.7]} 9... Nbd7 {[%clk
0:02:43.5]} 10. f3 {[%clk 0:02:55.6]} 10... e5 {[%clk 0:02:42.7]} 11. e3 {[%clk
0:02:48.2]} 11... c5 {[%clk 0:02:41.3]} 12. dxe5 {[%clk 0:02:45]} 12... Nxe5
{[%clk 0:02:42.2]} 13. Kh1 {[%clk 0:02:39.9]} 13... Bd7 {[%clk 0:02:39]} 14. e4
{[%clk 0:02:28.3]} 14... fxe4 {[%clk 0:02:30.7]} 15. fxe4 {[%clk 0:02:26.7]}
15... dxe4 {[%clk 0:02:23.5]} 16. Ng5 {[%clk 0:02:04.3]} 16... e3 {[%clk
0:02:20.1]} 17. Ndf3 {[%clk 0:01:46.1]} 17... Nfg4 {[%clk 0:02:13.3]} 18. Nxe5
{[%clk 0:01:29.1]} 18... Bxe5 {[%clk 0:02:11.3]} 19. Nf3 {[%clk 0:01:21.7]}
19... Bg7 {[%clk 0:02:03.2]} 20. h3 {[%clk 0:01:08.9]} 20... Nf2+ {[%clk
0:01:34.7]} 21. Kh2 {[%clk 0:01:08.6]} 21... Bxh3 {[%clk 0:01:33.9]} 22. Bxh3
{[%clk 0:01:00.5]} 22... Rxf3 {[%clk 0:01:32.4]} 23. Bxe3 {[%clk 0:00:55.6]}
23... Rxe3 {[%clk 0:01:16.1]} 24. Qxf2 {[%clk 0:00:45.8]} 24... Re7 {[%clk
0:01:09.2]} 25. Rae1 {[%clk 0:00:36.4]} 25... Qd6 {[%clk 0:00:57.9]} 26. Rxe7
{[%clk 0:00:23.8]} 26... Qxe7 {[%clk 0:00:58.8]} 27. Re1 {[%clk 0:00:23.5]}
27... Be5 {[%clk 0:00:45]} 28. Kg2 {[%clk 0:00:16.6]} 28... Re8 {[%clk
0:00:42.4]} 29. Re2 {[%clk 0:00:14.4]} 29... Qf8 {[%clk 0:00:33.8]} 30. Qe1
{[%clk 0:00:13.3]} 30... Qd6 {[%clk 0:00:28.2]} 31. Bg4 {[%clk 0:00:12.6]} 31...
Re7 {[%clk 0:00:26.7]} 32. Bf3 {[%clk 0:00:12.7]} 32... b6 {[%clk 0:00:22.2]}
33. c4 {[%clk 0:00:12]} 33... Bf6 {[%clk 0:00:21]} 34. Bd5+ {[%clk 0:00:12.1]}
34... Kg7 {[%clk 0:00:21.3]} 35. Rxe7+ {[%clk 0:00:12.2]} 35... Qxe7 {[%clk
0:00:21.4]} 36. Qxe7+ {[%clk 0:00:12]} 36... Bxe7 {[%clk 0:00:22.3]} 37. b3
{[%clk 0:00:12.5]} 37... Bf6 {[%clk 0:00:23]} 38. Kf3 {[%clk 0:00:12.6]} 38...
h5 {[%clk 0:00:22.9]} 39. g4 {[%clk 0:00:12.6]} 39... Be5 {[%clk 0:00:20.4]} 40.
gxh5 {[%clk 0:00:12.2]} 40... gxh5 {[%clk 0:00:20.8]} 41. Bc6 {[%clk 0:00:12.3]}
41... Kf6 {[%clk 0:00:19.9]} 42. Be8 {[%clk 0:00:12.6]} 42... h4 {[%clk
0:00:20.4]} 43. Kg4 {[%clk 0:00:12.9]} 43... Bg3 {[%clk 0:00:20.7]} 44. Bb5
{[%clk 0:00:12.4]} 44... Ke5 {[%clk 0:00:21.2]} 45. Be8 {[%clk 0:00:11.8]} 45...
Kd4 {[%clk 0:00:21.7]} 46. Bb5 {[%clk 0:00:11.3]} 46... Kc3 {[%clk 0:00:22.2]}
47. a4 {[%clk 0:00:10.3]} 47... Kxb3 {[%clk 0:00:22.5]} 48. Kf3 {[%clk
0:00:09.4]} 48... a6 {[%clk 0:00:20.1]} 49. Bxa6 {[%clk 0:00:09.4]} 49... Kxa4
{[%clk 0:00:20.8]} 50. Bb5+ {[%clk 0:00:09.8]} 50... Kb4 {[%clk 0:00:21.4]} 51.
Kg2 {[%clk 0:00:10.3]} 51... Kc3 {[%clk 0:00:22]} 52. Kh3 {[%clk 0:00:11.2]}
52... Kd4 {[%clk 0:00:22.6]} 53. Ba6 {[%clk 0:00:11.8]} 53... Ke5 {[%clk
0:00:22]} 54. Bb5 {[%clk 0:00:12.4]} 54... Kd6 {[%clk 0:00:22.8]} 55. Ba6 {[%clk
0:00:13]} 55... Kc7 {[%clk 0:00:23.5]} 56. Bb5 {[%clk 0:00:13.6]} 56... Kb7
{[%clk 0:00:23.2]} 57. Ba4 {[%clk 0:00:13.9]} 57... Ka6 {[%clk 0:00:23.3]} 58.
Bb5+ {[%clk 0:00:14.8]} 58... Ka5 {[%clk 0:00:24.2]} 59. Bc6 {[%clk 0:00:15]}
59... Kb4 {[%clk 0:00:25.1]} 60. Bb5 {[%clk 0:00:15.4]} 60... Kc3 {[%clk
0:00:25.6]} 61. Ba6 {[%clk 0:00:15.7]} 61... Kb4 {[%clk 0:00:23.4]} 62. Bb5
{[%clk 0:00:16.2]} 62... Ka5 {[%clk 0:00:24.3]} 63. Bc6 {[%clk 0:00:16.1]} 63...
Ka6 {[%clk 0:00:22.2]} 64. Bb5+ {[%clk 0:00:16.5]} 64... Kb7 {[%clk 0:00:23.1]}
65. Ba4 {[%clk 0:00:16.6]} 65... Kc7 {[%clk 0:00:23]} 66. Bb5 {[%clk 0:00:16.9]}
66... Kd6 {[%clk 0:00:23.7]} 67. Ba4 {[%clk 0:00:16.9]} 67... Ke5 {[%clk
0:00:24.4]} 68. Bb5 {[%clk 0:00:17.4]} 68... Kd4 {[%clk 0:00:25.1]} 69. Ba6
{[%clk 0:00:17.8]} 69... Kd3 {[%clk 0:00:25.7]} 70. Bb5 {[%clk 0:00:18.1]} 70...
Kc2 {[%clk 0:00:26.6]} 71. Ba6 {[%clk 0:00:18.4]} 71... Kb3 {[%clk 0:00:27.3]}
72. Bb5 {[%clk 0:00:18.6]} 72... Kb4 {[%clk 0:00:28]} 73. Ba6 {[%clk 0:00:18.9]}
73... Ka5 {[%clk 0:00:28.9]} 74. Bb5 {[%clk 0:00:19.2]} 74... Bf2 {[%clk
0:00:29.2]} 75. Kg2 {[%clk 0:00:18.2]} 75... Be1 {[%clk 0:00:29.8]} 76. Kh3
{[%clk 0:00:18.3]} 76... Kb4 {[%clk 0:00:29.4]} 77. Ba6 {[%clk 0:00:18.4]} 77...
Kc3 {[%clk 0:00:30.1]} 78. Bb5 {[%clk 0:00:18.7]} 78... Kd4 {[%clk 0:00:30.8]}
79. Ba6 {[%clk 0:00:18.4]} 79... Ke5 {[%clk 0:00:31.7]} 80. Bb5 {[%clk
0:00:18.6]} 80... Kd6 {[%clk 0:00:32.6]} 81. Ba6 {[%clk 0:00:18.7]} 81... Kc7
{[%clk 0:00:33.5]} 82. Bb5 {[%clk 0:00:19]} 82... Kb7 {[%clk 0:00:34.3]} 83. Ba4
{[%clk 0:00:19.2]} 83... Ka6 {[%clk 0:00:34.6]} 84. Bb5+ {[%clk 0:00:19.5]}
84... Ka5 {[%clk 0:00:35.5]} 85. Bc6 {[%clk 0:00:19.8]} 85... Bf2 {[%clk
0:00:35.6]} 86. Bb5 {[%clk 0:00:20.3]} 86... Bg3 {[%clk 0:00:36.2]} 1/2-1/2